Cogmind - Beta 13 @@@ ROGUE MODE // 2024.03.08 @ 22:55:09 Player: Baxter Result: Destroyed by BD-TNQ(R) with Subdweller Shrapnel Launcher Performance ------------- Evolutions (0) 0 Regions Visited (3) 600 Robots Destroyed (16) 80 Value Destroyed (375) 375 Prototype IDs (0) 0 Alien Tech Used (0) 0 Bonus (0) 0 TOTAL SCORE: 1055 Bonus ------- None Cogmind --------- Core Integrity 0/250 Matter 450/450 Energy 250/250 System Corruption 0% Temperature Cool (0) Movement Rolling (135) Ox3 Location -10/Subcaves Parts ------- > --- POWER (1) -------- Ion Engine > --- PROPULSION (2) --- Wheel Compact Wheel > --- UTILITY (2) ------ Huge Storage Unit Large Matter Pod > --- WEAPON (2) ------- EM Pulse Gun Assault Rifle > --- INVENTORY (25) --- Ion Engine Ion Engine Ion Engine Light Ion Engine Light Ion Engine Improved Ion Engine Light Treads Light Treads Medium Storage Unit Structural Scanner Terrain Scanner Light Armor Plating Light Armor Plating Light Armor Plating Light Armor Plating Light Armor Plating Hacking Suite Tractor Beam Assault Rifle Hammer Heavy Explosive Trap Heavy Explosive Trap Heavy Explosive Trap Heavy Explosive Trap Heavy Explosive Trap Peak State ------------ > --- POWER ------------ Ion Engine > --- PROPULSION ------- Wheel Wheel > --- UTILITY ---------- Huge Storage Unit Large Matter Pod > --- WEAPON ----------- EM Pulse Gun Assault Rifle > --- INVENTORY -------- Ion Engine Ion Engine Ion Engine Light Ion Engine Light Ion Engine Light Treads Light Treads Wheel Compact Wheel Medium Storage Unit Terrain Scanner Light Armor Plating Light Armor Plating Light Armor Plating Hacking Suite Tractor Beam EM Pulse Gun Hammer [Rating: 9] Favorites ----------- Power Ion Engine Engine Ion Engine Propulsion Wheel Treads Light Treads Wheel Wheel Utility Huge Storage Unit Device Tractor Beam Storage Huge Storage Unit Weapon Assault Rifle Energy Gun EM Pulse Gun Ballistic Gun Assault Rifle Build | -11 -10 -10 -10 ------- Run | Yrd Mat Min Sub Slots Evolved . | . . . . Power . | . . . . Propulsion . | . . . . Utility . | . . . . Weapon . | . . . . Parts Attached 23 | 6 16 1 . Power 2 | . 2 . . Engine 2 | . 2 . . Core . | . . . . Reactor . | . . . . Propulsion 10 | 2 8 . . Treads 4 | . 4 . . Leg . | . . . . Wheel 6 | 2 4 . . Hover . | . . . . Flight . | . . . . Utility 4 | 2 2 . . Device 1 | 1 . . . Storage 3 | 1 2 . . Processor . | . . . . Hackware . | . . . . Protection . | . . . . Artifact . | . . . . Weapon 7 | 2 4 1 . Energy Gun 3 | . 3 . . Energy Cannon . | . . . . Ballistic Gun 4 | 2 1 1 . Ballistic Cannon . | . . . . Launcher . | . . . . Special Weapon . | . . . . Impact Weapon . | . . . . Slashing Weapon . | . . . . Piercing Weapon . | . . . . Special Melee Weapon . | . . . . Unidentified Prototypes . | . . . . Parts Lost 4 | . 3 1 . Power . | . . . . Propulsion 2 | . 2 . . Utility . | . . . . Weapon 2 | . 1 1 . Highest Loss Streak 2 | . 2 1 . To Critical Strikes . | . . . . Average Slot Usage (%) 99 | . 99 99 100 Engine 13 | . 13 14 14 Treads 1 | . 2 . . Wheel 26 | . 25 28 28 Storage 27 | . 26 28 28 Energy Gun 11 | . 9 15 14 Ballistic Gun 16 | . 18 12 14 Naked Turns . | . . . . Heaviest Build 92 | 10 92 92 92 Greatest Support 26 | 20 26 26 26 Greatest Overweight (x) 9 | . 9 3 3 Average Overweight (x) 3 | . 3 3 3 Largest Inventory Capacity 25 | 8 25 25 25 Average Capacity 24 | 7 24 25 25 Most Carried 25 | 6 18 25 25 Average Carried 15 | 3 13 20 25 Final Capacity 25 | 8 25 25 25 Final Carried 25 | 6 17 25 25 Class Distribution -------------------- 100% | Mutant Dominant Class ---------------- Mutant | -10/Materials Mutant | -10/Mines Mutant | -10/Subcaves Resources | -11 -10 -10 -10 ----------- Run | Yrd Mat Min Sub Matter Collected 789 | 266 370 142 11 Remotely 148 | 148 . . . Salvage Created 584 | 90 376 118 . Parts 39 | 2 30 7 . Haulers Intercepted 1 | . 1 . . Recyclers Shooed 2 | . 2 . . Parts Field Recycled . | . . . . Retrieved Matter . | . . . . Parts Self-Destructed 3 | . . . 3 Prevented . | . . . . Kills | -11 -10 -10 -10 ------- Run | Yrd Mat Min Sub Combat Hostiles Destroyed 10 | . 8 2 . Guns 10 | . 8 2 . Classes Destroyed 7 | 1 5 1 . Hauler 1 | . 1 . . Recycler 1 | 1 . . . Operator 2 | . 2 . . Watcher 2 | . 2 . . Swarmer 3 | . 3 . . Grunt 5 | . 5 . . Sentry 2 | . . 2 . Best Kill Streak 2 | 1 2 2 . Combat Bots Only 2 | . 2 2 . Max Kills in Single Turn 1 | 1 1 1 . Gunslinging . | . . . . Exploded . | . . . . Melee . | . . . . Uniques/NPCs Destroyed . | . . . . Combat | -11 -10 -10 -10 -------- Run | Yrd Mat Min Sub Hostile Shots Fired 84 | . 61 22 1 Missed 25 | . 16 9 . Damage Taken 819 | . 607 192 20 Core 269 | . 165 84 20 Absorbed by Shields . | . . . . Core Remaining (%) 100 | 100 . . . Volleys Fired 65 | 1 56 8 . Largest 2 | 2 2 2 . Hottest 80 | 40 80 80 . Shots Fired 111 | 2 94 15 . Gun 111 | 2 94 15 . Cannon . | . . . . Launcher . | . . . . Special . | . . . . Kinetic 77 | 2 71 4 . Thermal . | . . . . Explosive . | . . . . Electromagnetic 34 | . 23 11 . Robot Hit Streak 7 | 1 7 7 . Robot Miss Streak 10 | . 10 1 . Penetration Max . | . . . . Secondary Targets 3 | . 2 1 . Max Gunslinging Chain 1 | . 1 1 . Shots Hit Robots 66 | 1 53 12 . Core Hits 28 | 1 23 4 . Critical Kills . | . . . . Critical Parts Destroyed . | . . . . Critical Strikes . | . . . . Melee Attacks . | . . . . Impact . | . . . . Slashing . | . . . . Piercing . | . . . . Sneak Attacks . | . . . . Combat Hostiles . | . . . . Follow-up Attacks . | . . . . Damage Inflicted 889 | 28 705 156 . Guns 855 | 28 684 143 . Cannons . | . . . . Explosions 21 | . 21 . . Melee . | . . . . Ramming 13 | . . 13 . Kinetic 569 | 28 489 52 . Thermal 21 | . 21 . . Explosive . | . . . . Electromagnetic 286 | . 195 91 . Impact . | . . . . Slashing . | . . . . Piercing . | . . . . Highest Corruption . | . . . . Average Corruption . | . . . . Corruption Purged . | . . . . Corruption Blocked . | . . . . Overload Shots . | . . . . Overflow Damage 16 | . 16 . . Projectiles . | . . . . Explosions 16 | . 16 . . Melee . | . . . . Knockbacks . | . . . . Impact . | . . . . Kinetic . | . . . . Secondary . | . . . . Self-Inflicted Damage 34 | . 28 6 . Shots 1 | . 1 . . Rammed 1 | . . 1 . Targets Rammed 1 | . . 1 . Kicked . | . . . . Crushed . | . . . . Highest Temperature 97 | . 96 97 . Average Temperature 43 | . 31 68 . Received Heat Transfer 276 | . 213 63 . Siege Activations . | . . . . Robots Corrupted . | . . . . Combat Hostiles . | . . . . Parts Fried 2 | . 1 1 . Impact Corruptions . | . . . . Robots Melted . | . . . . Combat Hostiles . | . . . . Parts Melted . | . . . . Heat Transferred 50 | . 50 . . Parts Sabotaged . | . . . . Parts Stolen . | . . . . Parts Stripped . | . . . . Power Chain Reactions 1 | . 1 . . Alert | -11 -10 -10 -10 ------- Run | Yrd Mat Min Sub Peak Influence 190 | 5 190 65 . Initial 20 | . 3 20 . Average 62 | 1 76 42 . Maximum Alert Level . | . . . . Low Security (%) 100 | 100 100 100 . Level 1 . | . . . . Level 2 . | . . . . Level 3 . | . . . . Level 4 . | . . . . Level 5 . | . . . . High Security . | . . . . Max Security . | . . . . Squads Dispatched 2 | . 2 . . Investigation . | . . . . Extermination . | . . . . Reinforcement 2 | . 2 . . Assault . | . . . . Garrison . | . . . . Intercept . | . . . . Searches Triggered . | . . . . Construction Impeded . | . . . . Haulers Reinforced . | . . . . Active Scanning Responses . | . . . . Cargo Convoy Interrupts . | . . . . Stealth | -11 -10 -10 -10 --------- Run | Yrd Mat Min Sub Distress Signals 2 | . 2 . . Communications Jammed . | . . . . Distress Signals . | . . . . Times Spotted 33 | . 30 2 1 Peak Tracking Total 7 | . 7 2 1 Tactical Retreats 2 | . 2 . . Traps | -11 -10 -10 -10 ------- Run | Yrd Mat Min Sub Traps Triggered 2 | . 2 . . Indirectly . | . . . . Trap Hack Attempts . | . . . . Triggered . | . . . . Disarmed . | . . . . Reprogrammed . | . . . . Reused . | . . . . Traps Extracted . | . . . . Installed . | . . . . Triggered . | . . . . Most Traps Carried 5 | . . 5 5 Machines | -11 -10 -10 -10 ---------- Run | Yrd Mat Min Sub Machines Disabled . | . . . . Max in Single Turn . | . . . . Machines Repaired . | . . . . Machines Dismantled . | . . . . Machines Sabotaged . | . . . . Overloaded Fab Kills . | . . . . Hacking | -11 -10 -10 -10 --------- Run | Yrd Mat Min Sub Machines Accessed 3 | . 3 . . Terminals 3 | . 3 . . Fabricators . | . . . . Repair Stations . | . . . . Recycling Units . | . . . . Scanalyzers . | . . . . Garrison Access . | . . . . Total Hacks 8 | . 8 . . Successful 2 | . 2 . . Failed 6 | . 6 . . Catastrophic . | . . . . Database Lockouts . | . . . . Manual 8 | . 8 . . Terminals 8 | . 8 . . Fabricators . | . . . . Repair Stations . | . . . . Recycling Units . | . . . . Scanalyzers . | . . . . Garrison Access . | . . . . Terminal Hacks . | . . . . Fabricator Hacks . | . . . . Repair Station Hacks . | . . . . Recycling Unit Hacks . | . . . . Scanalyzer . | . . . . Garrison Access Hacks . | . . . . Unauthorized Hacks 2 | . 2 . . Terminals 2 | . 2 . . Botnet 2 | . 2 . . Fabricators . | . . . . Repair Stations . | . . . . Recycling Units . | . . . . Scanalyzers . | . . . . Garrison Access . | . . . . Data Cores Recovered . | . . . . Used . | . . . . Hacking Detections 3 | . 3 . . Full Trace Events 1 | . 1 . . Feedback Events . | . . . . Feedback Blocked . | . . . . Robot Schematics Acquired . | . . . . Robots Built . | . . . . Authchips . | . . . . Time . | . . . . Total Robot Build Rating . | . . . . Part Schematics Acquired . | . . . . Parts Built . | . . . . Authchips . | . . . . Time . | . . . . Total Part Build Rating . | . . . . Parts Repaired . | . . . . Time . | . . . . Parts Recycled . | . . . . Recycled Matter . | . . . . Retrieved Matter . | . . . . Retrieved Components . | . . . . Parts Scanalyzed . | . . . . Part Schematics Acquired . | . . . . Parts Damaged . | . . . . Bothacking | -11 -10 -10 -10 ------------ Run | Yrd Mat Min Sub Used RIF Installer . | . . . . Robots Hacked . | . . . . Non-combat . | . . . . Combat . | . . . . Robot Hacks Applied . | . . . . Relay Couplers Released . | . . . . Fabnet Peak Effective % . | . . . . Robots Rewired . | . . . . Allies Hacked . | . . . . Hacks Repelled . | . . . . Allies | -11 -10 -10 -10 -------- Run | Yrd Mat Min Sub Total Allies . | . . . . Largest Group . | . . . . Highest-Rated Group . | . . . . Highest-Rated Ally . | . . . . Total Orders . | . . . . Ally Attacks . | . . . . Total Damage . | . . . . Kills . | . . . . Allies Corrupted . | . . . . Allies Melted . | . . . . Intel | -11 -10 -10 -10 ------- Run | Yrd Mat Min Sub Robot Analysis Total . | . . . . Derelict Logs Recovered 2 | . . 2 . Drone Launches . | . . . . Drone Recoveries . | . . . . Exploration | -11 -10 -10 -10 ------------- Run | Yrd Mat Min Sub Turns Passed 1762 | 66 1058 534 104 Spaces Moved 1081 | 61 573 370 77 Core 5 | 5 . . . Treads 1 | . 1 . . Legs . | . . . . Wheels 1075 | 56 572 370 77 Hover . | . . . . Flight . | . . . . Fastest Speed 50 | 50 80 135 135 Average Speed 135 | 77 142 135 135 Slowest Speed 480 | 80 480 135 135 Overloaded Moves . | . . . . Propulsion Burnouts . | . . . . Robots Hopped . | . . . . Cave-ins Triggered . | . . . . Exploration Rate (%) 42 | 5 90 69 5 Regions Visited 3 Branch Regions 2 Pre-discovered Areas 2 | . . 1 1 Known Exits Taken . | . . . . Unknown Exits Taken 3 | 1 1 1 . Scrap Searched 1 | . . 1 . Spaces Dug . | . . . . Terrain Destroyed 2 | . 2 . . Melee . | . . . . Projectile . | . . . . AOE 2 | . 2 . . Terrain Rammed . | . . . . Walls Destroyed . | . . . . Machines Disabled . | . . . . Actions | -11 -10 -10 -10 --------- Run | Yrd Mat Min Sub Total 1257 | 74 717 389 77 Wait 54 | . 53 1 . Move 1078 | 60 572 369 77 Hop . | . . . . Pick Up 33 | 7 17 9 . Fast Attach 5 | 5 . . . Attach 7 | 1 5 1 . Detach . | . . . . Swap 11 | . 11 . . Drop 3 | . 3 . . Fire 65 | 1 56 8 . Melee . | . . . . Ram 1 | . . 1 . Kick . | . . . . Crush . | . . . . Escape Stasis . | . . . . Rewire . | . . . . Trap . | . . . . Miscellaneous . | . . . . Route ------- -11/Scrapyard -10/Materials (discovered 5 exits: [*Mat x3] / [*Min x2]) -10/Mines (discovered 2 exits: [*Mat] / [*Sub]) -10/Subcaves History --------- Turn | Location | Event 17 | -11/Scrapyard | Discovered new exit (range 16) 67 | -11/Scrapyard | Entered Materials 152 | -10/Materials | Discovered new exit (range 11) 310 | -10/Materials | Build established: Mutant 369 | -10/Materials | Discovered new exit (range 16) 475 | -10/Materials | Discovered new exit (range 16) 724 | -10/Materials | Core integrity fell below 50% 753 | -10/Materials | Discovered new exit (range 6) 905 | -10/Materials | Discovered new exit (range 8) 1125 | -10/Materials | Entered Mines 1189 | -10/Mines | Core integrity fell below 20% 1453 | -10/Mines | Learned 2 Materials zone layouts 1508 | -10/Mines | Found a hidden stash of uninstalled traps 1571 | -10/Mines | Learned location of Storage (-9) 1571 | -10/Mines | Discovered new exit (range 7) 1648 | -10/Mines | Discovered new exit (range 10) 1659 | -10/Mines | Entered Subcaves 1669 | -10/Subcaves | Learned location of Zion (-6) 1669 | -10/Subcaves | Met a Zionite searching for "candidates" 1763 | -10/Subcaves | Destroyed by BD-TNQ(R) with Subdweller Shrapnel Launcher Last Messages --------------- 01648_ T-07 Excavator is excavating. 01648_ EXIT=FOUND 01652_ T-07 Excavator is excavating. 01658_ Slammed into U-05 Engineer. LOCATION=UNKNOWN AMBIENT_HEAT=-10 GOAL=ESCAPE 01659_ Acquired 9 matter. 01661_ Acquired 2 matter. 01662_ 26-NJY(u) builds Twisted Machinery. 01665_ 6I-W17(z): "She is not going to be happy we haven't found any suitable candidates yet." 01666_ 26-NJY(u) builds Twisted Machinery. 01669_ 6I-W17(z): "Hey you! It's really dangerous down here, I feel that you could die at any moment. For your health and safety might I suggest a trip to Zion?" World map updated: -6/Zion. 01680_ 26-NJY(u) builds Twisted Machinery. 01685_ B0-FGR(O) collects matter. Map ----- +----------------------------------------------------+ | ????????????## #### ##????????????????? | | ?????????????###?????## #????????????????? | | ?????????????????????# ## ##????????????????? | | ????????????????????## ##???????????????? | | ????????????????????# #???????????????? | | ????????????????????##% %% #???????????????? | | ?????????????????????# ## ##??????????????? | | ?????????????????????# ## #??????????????? | | ?????????????????????#"""### ######??????????? | | ?????????????????????## ### # #??????????? | | ??????????????????????#""## # #??????????? | | ??????????????????????#""### #??????????? | | ??????????????????????# # #####??????????? | | ??????????????????????## #??????????????? | | ???????????????????????## ##?????????????? | | ????????????????????????## #?????????????? | | ???????????????###?#????## #?????????????? | | ???????????????# ??## ##?????????????? | | ????????????? ## ## #??????????????? | | ??????????? #??????????????? | | ??????????? # #####??????????????? | | ??????????? ### #??????????????????? | | ??????????? ## #?# #??????????????????? | | ?????????? ## ## #??????????????????? | | ?????????? #??????????????????? | | ?????????? @#??????????????????? | | ?????????? ####???????????????? | | ?????????? R #### ## ##??????????????? | | ???????????## ????# ## #??????????????? | | ????????????## ??????# " ## #??????????????? | | ?????????????#????????# " #??????????????? | | ??????????????????????##" ##?????????????? | | ???????????????????????## #?????????????? | | ??????????????????????### #?????????????? | | ??????????????????????#" ###?????????????? | | ??????????????????????## ##???????????????? | | ???????????????????????######????????????????? | | ?????????????????????????????????????????????? | | ?????????????????????????????????????????????? | | ?????????????????????????????????????????????? | | ?????????????????????????????????????????????? | | ?????????????????????????????????????????????? | | ?????????????????????????????????????????????? | | ?????????????????????????????????????????????? | | ?????????????????????????????????????????????? | | ?????????????????????????????????????????????? | | ?????????????????????????????????????????????? | | ?????????????????????????????????????????????? | | ?????????????????????????????????????????????? | | ?????????????????????????????????????????????? | +----------------------------------------------------+ Best States ------------- Heat Dissipation 25 Energy Generation 10 Energy Capacity 250 Matter Stores 450 Matter Capacity 450 Sight Range 16 Terrain Scan Density 10 Evasion (%) 44 Recoil Reduction 1 Item Schematics ----------------- None Robot Schematics ------------------ None Fabricated ------------ Nothing Alien Tech Used ----------------- None Achievements -------------- None Challenges ------------ None Game ------ Seed GrenadeTitaniumAccelerator Manual? 0 Play Time 00:11:56 Cumulative 28.1 hours Start 2024.03.08 @ 22:41:58 End 2024.03.08 @ 22:55:09 Sessions 1 Manual Loads 0 Difficulty Rogue Special Mode None Game No. 29 Rogue 29 Adventurer 0 Explorer 0 Win Type - Total 0 Types 0/0/0/0/0/0/0/0/0 Lore% 22 Gallery% 25 Achievement% 22 Wizard Run 0 Options --------- Layout 1 ASCII 0 Keyboard 0 Movement Numpad Keybinds 0 Fullscreen 2 Font 24/X11 Map View 50x35 Zoom Use 0% Tactical HUD 1 Map Filters NONE Filters NONE Steam 0 RUN: aba8acde-d66f-4544-9dc0-87cbbd6ce6ef